[Event "10th LCC FIDE Open 2018"]
[Site "London"]
[Date "2018.12.09"]
[Round "1"]
[White "Piesik, Piotr"]
[Black "Yoon, Jacob D"]
[Result "1-0"]
[ECO "A30"]
[WhiteElo "2404"]
[BlackElo "2009"]
[Annotator "ChessBase"]
[PlyCount "97"]
[EventDate "2018.12.09"]
[EventType "swiss"]
[EventCountry "ENG"]
[SourceTitle "playchess.com"]
[Source "ChessBase"]
[SourceQuality "1"]
[TimeControl "40/5400+30:1800+30"]

1. d4 {[%emt 0:00:00]} e6 {[%emt 0:00:00]} 2. g3 {[%emt 0:00:28]} c5 {[%emt 0:00:56]} 3. Nf3 {[%emt 0:01:09]} b6 {[%emt 0:02:12]} 4. Bg2 {[%emt 0:10:03]} Bb7 {[%emt 0:02:05]} 5. O-O {[%emt 0:00:52]} cxd4 {[%emt 0:01:55]} 6. Qxd4 {[%emt 0:00:47]} Nf6 {[%emt 0:01:26]} 7. c4 {[%emt 0:03:05]} Be7 {[%emt 0:02:10]} 8. Nc3 {[%emt 0:04:31]} O-O {[%emt 0:01:32]} 9. e4 {[%emt 0:06:29]} d6 {[%emt 0:00:43]} 10. Rd1 {[%emt 0:08:05]} a6 {[%emt 0:01:30]} 11. b3 {[%emt 0:07:43]} Nbd7 {[%emt 0:01:52]} 12. Bb2 {[%emt 0:00:51]} Qc7 {[%emt 0:02:23]} 13. Qe3 {[%emt 0:06:24]} Rfd8 {[%emt 0:12:54]} 14. Rac1 {[%emt 0:01:05]} Rac8 {[%emt 0:02:47]} 15. Nd4 {[%emt 0:03:12]} Bf8 {[%emt 0:01:27]} 16. Qe2 {[%emt 0:04:59]} Qb8 {[%emt 0:01:06]} 17. Re1 {[%emt 0:09:19]} Qa8 {[%emt 0:05:02]} 18. g4 {[%emt 0:08:46]} Nc5 {[%emt 0:03:56]} 19. g5 {[%emt 0:01:02]} Ne8 {[%emt 0:00:24]} 20. h4 {[%emt 0:01:45]} g6 {[%emt 0:03:44]} 21. Qe3 {[%emt 0:02:02]} Ng7 {[%emt 0:09:51]} 22. Rcd1 {[%emt 0:01:18]} Re8 {[%emt 0:02:45]} 23. Qf3 {[%emt 0:08:29]} Rcd8 {[%emt 0:06:45]} 24. Nc2 {[%emt 0:00:41]} Nd7 {[%emt 0:12:40]} 25. Ne3 {[%emt 0:00:18]} Ne5 {[%emt 0:00:04]} 26. Qh3 {[%emt 0:02:23]} Nh5 {[%emt 0:03:03]} 27. Qh2 {[%emt 0:00:04]} f5 {[%emt 0:03:30]} 28. gxf6 {[%emt 0:01:22]} Nxf6 {[%emt 0:01:08]} 29. f4 {[%emt 0:00:19]} Neg4 {[%emt 0:01:20]} 30. Nxg4 {[%emt 0:00:06]} Nxg4 {[%emt 0:00:06]} 31. Qg3 {[%emt 0:00:04]} Nf6 {[%emt 0:02:23]} 32. Bf3 {[%emt 0:05:06]} Bg7 {[%emt 0:02:37]} 33. h5 {[%emt 0:00:13]} gxh5 {[%emt 0:02:45]} 34. Nd5 {[%emt 0:00:19]} exd5 {[%emt 0:00:06]} 35. Bxf6 {[%emt 0:00:05]} Rd7 {[%emt 0:00:03]} 36. exd5 {[%emt 0:00:46]} Kh8 {[%emt 0:00:39]} 37. Bg5 {[%emt 0:01:16]} h6 {[%emt 0:05:27]} 38. Qh3 {[%emt 0:00:45]} Rf7 {[%emt 0:02:22]} 39. Qxh5 {[%emt 0:00:21]} Rxe1+ {[%emt 0:00:05]} 40. Rxe1 {[%emt 0:00:03]} Qf8 {[%emt 0:00:08]} 41. Bg4 {[%emt 0:04:39]} b5 {[%emt 0:04:04]} 42. Be6 {[%emt 0:02:08]} Rxf4 {[%emt 0:00:38]} 43. Bxf4 {[%emt 0:00:09]} Qxf4 {[%emt 0:00:05]} 44. Qe8+ {[%emt 0:04:29]} Bf8 {[%emt 0:00:19]} 45. Qf7 {[%emt 0:00:59]} Qg3+ {[%emt 0:00:31]} 46. Kf1 {[%emt 0:00:04]} Qd3+ {[%emt 0:00:05]} 47. Re2 {[%emt 0:00:13]} Qd1+ {[%emt 0:00:06]} 48. Kf2 {[%emt 0:00:05]} Qd4+ {[%emt 0:00:04]} 49. Kg2 {[%emt 0:00:09]} 1-0

[Event "10th LCC FIDE Open 2018"]
[Site "London"]
[Date "2018.12.09"]
[Round "1"]
[White "Eggleston, David J"]
[Black "Ditmas, Hugh"]
[Result "1-0"]
[ECO "B33"]
[WhiteElo "2397"]
[BlackElo "1978"]
[Annotator "NA"]
[PlyCount "89"]
[EventDate "2018.12.09"]
[EventType "swiss"]
[EventCountry "ENG"]
[SourceTitle "playchess.com"]
[Source "ChessBase"]
[SourceQuality "1"]
[TimeControl "40/5400+30:1800+30"]

1. e4 {[%emt 0:00:00]} c5 {[%emt 0:00:00]} 2. Nf3 {[%emt 0:00:00]} Nc6 {[%emt 0:00:02]} 3. d4 {[%emt 0:00:00]} cxd4 {[%emt 0:00:10]} 4. Nxd4 {[%emt 0:00:00]} Nf6 {[%emt 0:00:07]} 5. Nc3 {[%emt 0:00:00]} e5 {[%emt 0:00:09]} 6. Ndb5 {[%emt 0:00:00]} d6 {[%emt 0:00:08]} 7. Bg5 {[%emt 0:00:01]} a6 {[%emt 0:00:24]} 8. Na3 {[%emt 0:00:05]} b5 {[%emt 0:00:08]} 9. Nd5 {[%emt 0:00:09]} Be7 {[%emt 0:00:15]} 10. Bxf6 {[%emt 0:00:05]} Bxf6 {[%emt 0:00:07]} 11. c3 {[%emt 0:00:07]} Bg5 {[%emt 0:00:23]} 12. Nc2 {[%emt 0:00:09]} Rb8 {[%emt 0:00:05]} 13. a4 {[%emt 0:03:31]} bxa4 {[%emt 0:00:26] B33: Sicilian: Pelikan and Sveshnikov Variations} 14. Ncb4 {[%emt 0:00:06]} Nxb4 {[%emt 0:00:45]} 15. cxb4 {[%emt 0:00:15]} Bd7 {[%emt 0:03:02]} 16. Rxa4 {[%emt 0:13:43]} (16. Bxa6 O-O 17. O-O Qe8 18. b3 axb3 19. Qxb3 Bd8 20. Bc4 Kh8 21. Ra2 {½-½ (30) Karjakin,S (2773)-Dubov,D (2666) Tbilisi 2017}) 16... a5 $146 {[%emt 0:28:13]} ({Predecessor:} 16... Bxa4 17. Qxa4+ Qd7 18. Qxd7+ Kxd7 19. Bxa6 Bd8 20. Ke2 Rb6 21. Ra1 {1-0 (33) Alsina Leal,D (2517)-Prats Rodriguez,J (2101) Barcelona 2008}) 17. h4 {[%emt 0:10:15]} Bh6 {[%emt 0:01:30]} 18. Rxa5 {[%emt 0:25:32]} Rxb4 {[%emt 0:02:45]} 19. Nxb4 {[%emt 0:00:05]} Qxa5 {[%emt 0:01:37]} 20. Qxd6 {[%emt 0:07:56]} Qa1+ {[%emt 0:00:49]} 21. Qd1 {[%emt 0:00:29]} Qxb2 {[%emt 0:04:24]} 22. Nd5 {[%emt 0:00:30]} O-O {[%emt 0:04:32]} 23. Be2 {[%emt 0:10:40]} Bb5 {[%emt 0:05:25]} 24. Bxb5 {[%emt 0:10:18]} Qxb5 {[%emt 0:00:30]} 25. Rh3 {[%emt 0:00:08]} Rb8 {[%emt 0:16:15]} 26. Rd3 {[%emt 0:02:27]} g6 {[%emt 0:02:51]} 27. g3 {[%emt 0:06:10]} Bf8 {[%emt 0:14:16]} 28. Kf1 {[%emt 0:00:43]} Qc4 {[%emt 0:05:15]} 29. Kg1 {[%emt 0:02:36]} Kg7 {[%emt 0:00:56]} 30. Re3 {[%emt 0:04:16]} (30. Qf3 $11) 30... Bc5 $1 {[%emt 0:02:27]} 31. Re2 $2 {[%emt 0:01:11] [#]} (31. Rc3 $17 Qxe4 32. Rxc5) 31... Bd4 $2 {[%emt 0:01:21]} (31... Rb1 $1 $19 {[%cal Rb1d1][%mdl 512]} 32. Qxb1 Qxe2) 32. Qc2 {[%emt 0:01:22]} Qa6 {[%emt 0:01:43]} 33. Rd2 {[%emt 0:02:13]} Qa5 {[%emt 0:02:39]} 34. Qd3 {[%emt 0:01:14]} Rb1+ {[%emt 0:00:35]} 35. Kh2 {[%emt 0:00:09]} Qa1 {[%emt 0:00:31]} 36. Qf3 {[%emt 0:00:04]} Qa6 {[%emt 0:00:59]} 37. Rc2 {[%emt 0:00:10]} Rb2 {[%emt 0:00:51]} 38. Rxb2 {[%emt 0:00:45]} Bxb2 {[%emt 0:00:01]} 39. h5 {[%emt 0:00:20]} Bc1 {[%emt 0:00:48]} 40. Qc3 {[%emt 0:00:23]} Qf1 $2 {[%emt 0:01:26]} (40... Bg5 41. Qxe5+ Kh6 42. hxg6 fxg6) 41. Qxe5+ {[%emt 0:31:14]} Kh6 {[%emt 0:31:08]} 42. Qf6 {[%emt 0:00:00]} Qe2 {[%emt 0:00:00]} 43. Qxf7 {[%emt 0:00:00]} Qxh5+ {[%emt 0:00:00]} (43... Bg5 $18 44. hxg6 Qh5+ 45. Kg2 Qxg6 46. Qf8+ Qg7) 44. Kg2 {[%emt 0:00:00]} Qe5 {[%emt 0:00:00]} 45. Nf6 {[%emt 0:00:00]} 1-0

[Event "10th LCC FIDE Open 2018"]
[Site "London"]
[Date "2018.12.09"]
[Round "1"]
[White "Lewtak, Damian"]
[Black "Rice, Chris B"]
[Result "1-0"]
[ECO "A45"]
[WhiteElo "2393"]
[BlackElo "1963"]
[Annotator "ChessBase"]
[PlyCount "57"]
[EventDate "2018.12.09"]
[EventType "swiss"]
[EventCountry "ENG"]
[SourceTitle "playchess.com"]
[Source "ChessBase"]
[SourceQuality "1"]
[TimeControl "40/5400+30:1800+30"]

1. d4 {[%emt 0:00:00]} Nf6 {[%emt 0:00:00]} 2. Bf4 {[%emt 0:00:30]} b6 {[%emt 0:00:30]} 3. f3 {[%emt 0:00:30]} Ba6 {[%emt 0:00:30]} 4. e4 {[%emt 0:00:30]} Bxf1 {[%emt 0:00:30]} 5. Kxf1 {[%emt 0:00:30]} e6 {[%emt 0:00:30]} 6. Ne2 {[%emt 0:00:30]} d5 {[%emt 0:00:30]} 7. e5 {[%emt 0:00:30]} Nfd7 {[%emt 0:00:30]} 8. c4 {[%emt 0:00:30]} dxc4 {[%emt 0:00:30]} 9. Qa4 {[%emt 0:00:30]} c5 {[%emt 0:00:30]} 10. Qxc4 {[%emt 0:00:30]} Nc6 {[%emt 0:00:30]} 11. Nbc3 {[%emt 0:00:30]} Nxd4 {[%emt 0:00:30]} 12. Nxd4 {[%emt 0:00:30]} cxd4 {[%emt 0:00:30]} 13. Qxd4 {[%emt 0:00:30]} Bc5 {[%emt 0:00:30]} 14. Qa4 {[%emt 0:00:30]} O-O {[%emt 0:00:30]} 15. Rd1 {[%emt 0:00:30]} Qh4 {[%emt 0:00:30]} 16. Bg3 {[%emt 0:00:30]} Qxa4 {[%emt 0:00:30]} 17. Nxa4 {[%emt 0:00:30]} Rfd8 {[%emt 0:00:30]} 18. Ke2 {[%emt 0:00:30]} Be7 {[%emt 0:00:30]} 19. Rd3 {[%emt 0:00:30]} Kf8 {[%emt 0:00:30]} 20. Rhd1 {[%emt 0:00:30]} Ke8 {[%emt 0:00:30]} 21. Nc3 {[%emt 0:00:30]} Rac8 {[%emt 0:00:30]} 22. Nb5 {[%emt 0:00:30]} Rc5 {[%emt 0:00:30]} 23. Nd6+ {[%emt 0:00:30]} Bxd6 {[%emt 0:00:30]} 24. Rxd6 {[%emt 0:00:30]} Rc2+ {[%emt 0:00:30]} 25. Kf1 {[%emt 0:00:30]} Ke7 {[%emt 0:00:30]} 26. f4 {[%emt 0:00:30]} f6 {[%emt 0:00:30]} 27. f5 {[%emt 0:00:30]} Rcc8 {[%emt 0:00:30]} 28. Rxe6+ {[%emt 0:00:30]} Kf7 {[%emt 0:00:30]} 29. Red6 {[%emt 0:00:30]} 1-0

[Event "10th LCC FIDE Open 2018"]
[Site "London"]
[Date "2018.12.09"]
[Round "1"]
[White "Lacasa Diaz, Jose Antonio"]
[Black "Nelson, Omowale"]
[Result "1-0"]
[ECO "D10"]
[WhiteElo "2389"]
[BlackElo "1956"]
[Annotator "ChessBase"]
[PlyCount "71"]
[EventDate "2018.12.09"]
[EventType "swiss"]
[EventCountry "ENG"]
[SourceTitle "playchess.com"]
[Source "ChessBase"]
[SourceQuality "1"]
[TimeControl "40/5400+30:1800+30"]

1. d4 {[%emt 0:00:00]} d5 {[%emt 0:00:00]} 2. Bf4 {[%emt 0:00:00]} Nf6 {[%emt 0:00:00]} 3. e3 {[%emt 0:00:03]} Bf5 {[%emt 0:00:07]} 4. c4 {[%emt 0:00:28]} c6 {[%emt 0:01:02]} 5. Nc3 {[%emt 0:02:10]} e6 {[%emt 0:00:27]} 6. Qb3 {[%emt 0:00:20]} Qb6 {[%emt 0:00:47]} 7. c5 {[%emt 0:00:22]} Qxb3 {[%emt 0:00:40]} 8. axb3 {[%emt 0:00:08]} Nbd7 {[%emt 0:00:37]} 9. h3 {[%emt 0:01:25]} a6 {[%emt 0:01:09]} 10. b4 {[%emt 0:00:19]} Rc8 {[%emt 0:00:52]} 11. Nf3 {[%emt 0:00:34]} h6 {[%emt 0:00:22]} 12. Nd2 {[%emt 0:00:42]} Be7 {[%emt 0:06:04]} 13. Nb3 {[%emt 0:01:10]} Bd8 {[%emt 0:02:07]} 14. Bd6 {[%emt 0:01:53]} Bc7 {[%emt 0:04:42]} 15. Bxc7 {[%emt 0:02:03]} Rxc7 {[%emt 0:00:15]} 16. b5 {[%emt 0:00:07]} O-O {[%emt 0:15:32]} 17. b6 {[%emt 0:03:03]} Rcc8 {[%emt 0:09:29]} 18. Na5 {[%emt 0:00:13]} Rb8 {[%emt 0:01:15]} 19. Bxa6 {[%emt 0:00:37]} bxa6 {[%emt 0:04:13]} 20. Nxc6 {[%emt 0:00:12]} Bd3 {[%emt 0:12:48]} 21. Kd2 {[%emt 0:05:26]} Bc4 {[%emt 0:06:11]} 22. Nxb8 {[%emt 0:01:58]} Nxb8 {[%emt 0:02:19]} 23. Kc2 {[%emt 0:20:24]} Ne4 {[%emt 0:07:43]} 24. b3 {[%emt 0:01:47]} Nxc3 {[%emt 0:02:20]} 25. bxc4 {[%emt 0:00:44]} Ne4 {[%emt 0:00:09]} 26. cxd5 {[%emt 0:01:22]} exd5 {[%emt 0:00:51]} 27. f3 {[%emt 0:05:01]} Ng3 {[%emt 0:02:11]} 28. Rhb1 {[%emt 0:01:54]} Nf5 {[%emt 0:01:19]} 29. Kd3 {[%emt 0:00:25]} Ne7 {[%emt 0:06:17]} 30. b7 {[%emt 0:05:22]} Kh7 {[%emt 0:02:02]} 31. Rb6 {[%emt 0:03:24]} Nec6 {[%emt 0:04:27]} 32. Kd2 {[%emt 0:15:18]} a5 {[%emt 0:00:44]} 33. Rab1 {[%emt 0:03:55]} Rd8 {[%emt 0:03:14]} 34. Rxc6 {[%emt 0:04:53]} Nxc6 {[%emt 0:00:30]} 35. Rb6 {[%emt 0:00:06]} Nb8 {[%emt 0:01:13]} 36. c6 {[%emt 0:00:12]} 1-0

[Event "10th LCC FIDE Open 2018"]
[Site "London"]
[Date "2018.12.09"]
[Round "1"]
[White "Milliet, Sophie"]
[Black "Newton, Andrew"]
[Result "1-0"]
[ECO "B23"]
[WhiteElo "2376"]
[BlackElo "1948"]
[Annotator "NA"]
[PlyCount "37"]
[EventDate "2018.12.09"]
[EventType "swiss"]
[EventCountry "ENG"]
[SourceTitle "playchess.com"]
[Source "ChessBase"]
[SourceQuality "1"]
[TimeControl "40/5400+30:1800+30"]

1. e4 {[%emt 0:00:00]} c5 {[%emt 0:00:00]} 2. Nc3 {[%emt 0:00:00]} d6 {[%emt 0:00:04]} 3. f4 {[%emt 0:00:00]} g6 {[%emt 0:00:35]} 4. Nf3 {[%emt 0:00:17]} Bg7 {[%emt 0:00:42]} 5. Bb5+ {[%emt 0:00:56]} Bd7 {[%emt 0:02:54]} 6. Bc4 {[%emt 0:03:22]} Nf6 {[%emt 0:04:14]} 7. e5 {[%emt 0:09:21]} Nh5 {[%emt 0:07:10]} 8. O-O {[%emt 0:08:59]} O-O {[%emt 0:07:03]} 9. Ng5 {[%emt 0:17:19]} dxe5 {[%emt 0:17:25]} 10. fxe5 {[%emt 0:00:16]} e6 {[%emt 0:01:01]} 11. Nf3 {[%emt 0:00:32]} Bc6 {[%emt 0:01:59]} 12. d3 {[%emt 0:11:42]} Bxe5 {[%emt 0:03:23]} 13. Nxe5 {[%emt 0:01:01]} Qd4+ {[%emt 0:00:05]} 14. Kh1 {[%emt 0:00:17]} Qxe5 {[%emt 0:00:08]} 15. Bh6 {[%emt 0:00:16]} Rd8 {[%emt 0:04:01]} 16. Qd2 {[%emt 0:00:34]} Nd7 {[%emt 0:10:04]} 17. Rae1 {[%emt 0:00:22]} Qc7 {[%emt 0:00:37]} 18. Rxf7 {[%emt 0:11:49]} Kxf7 {[%emt 0:08:27]} 19. Rxe6 {[%emt 0:00:09]} 1-0

[Event "10th LCC FIDE Open 2018"]
[Site "London"]
[Date "2018.12.09"]
[Round "1"]
[White "Bates, Richard A"]
[Black "Edwards, Simon R"]
[Result "1/2-1/2"]
[ECO "A43"]
[WhiteElo "2372"]
[BlackElo "1931"]
[Annotator "NA"]
[PlyCount "68"]
[EventDate "2018.12.09"]
[EventType "swiss"]
[EventCountry "ENG"]
[SourceTitle "playchess.com"]
[Source "ChessBase"]
[SourceQuality "1"]
[TimeControl "40/5400+30:1800+30"]

1. d4 {[%emt 0:00:00]} Nf6 {[%emt 0:00:00]} 2. Nf3 {[%emt 0:00:00]} c5 {[%emt 0:00:00]} 3. d5 {[%emt 0:00:00]} b5 {[%emt 0:00:37]} 4. Bg5 {[%emt 0:00:09]} Ne4 {[%emt 0:01:18]} 5. Bh4 {[%emt 0:05:52]} Bb7 {[%emt 0:01:11]} 6. Qd3 {[%emt 0:05:12]} f5 {[%emt 0:04:00]} 7. Nbd2 {[%emt 0:08:51]} c4 {[%emt 0:04:30]} 8. Qd4 {[%emt 0:01:34]} Na6 {[%emt 0:02:34]} 9. c3 {[%emt 0:29:51]} Nc7 {[%emt 0:03:27]} 10. Nxe4 {[%emt 0:03:17]} fxe4 {[%emt 0:00:05]} 11. Qxe4 {[%emt 0:04:16]} Nxd5 {[%emt 0:04:01]} 12. Qf5 {[%emt 0:04:29]} g6 {[%emt 0:04:42]} 13. Qc2 {[%emt 0:06:03]} Bg7 {[%emt 0:02:23]} 14. e4 {[%emt 0:02:15]} Nf6 {[%emt 0:02:14]} 15. Nd2 {[%emt 0:02:20]} O-O {[%emt 0:00:59]} 16. Be2 {[%emt 0:00:25]} Qb6 {[%emt 0:04:52]} 17. Bf3 {[%emt 0:04:35]} e6 {[%emt 0:01:59]} 18. O-O {[%emt 0:01:01]} d5 {[%emt 0:02:02]} 19. Rad1 {[%emt 0:04:12]} d4 {[%emt 0:08:32]} 20. cxd4 {[%emt 0:00:46]} Qxd4 {[%emt 0:00:06]} 21. Bxf6 {[%emt 0:06:11]} Qxf6 {[%emt 0:00:57]} 22. e5 {[%emt 0:00:14]} Qe7 {[%emt 0:00:34]} 23. Bxb7 {[%emt 0:00:48]} Qxb7 {[%emt 0:00:05]} 24. f4 {[%emt 0:01:28]} Qb6+ {[%emt 0:02:56]} 25. Kh1 {[%emt 0:00:10]} Rad8 {[%emt 0:01:31]} 26. Ne4 {[%emt 0:01:09]} Qe3 {[%emt 0:01:55]} 27. Rxd8 {[%emt 0:04:25]} Rxd8 {[%emt 0:00:10]} 28. Nd6 {[%emt 0:00:04]} a6 {[%emt 0:01:34]} 29. Qd1 {[%emt 0:01:42]} Bxe5 {[%emt 0:01:47]} 30. fxe5 {[%emt 0:00:21]} Qxe5 {[%emt 0:00:11]} 31. Qf3 {[%emt 0:00:29]} Qxd6 {[%emt 0:00:06]} 32. Qf7+ {[%emt 0:00:14]} Kh8 {[%emt 0:00:03]} 33. Qf6+ {[%emt 0:00:11]} Kg8 {[%emt 0:00:04]} 34. Qf7+ {[%emt 0:00:04]} Kh8 {[%emt 0:00:50]} 1/2-1/2

[Event "10th LCC FIDE Open 2018"]
[Site "London"]
[Date "2018.12.09"]
[Round "1"]
[White "Wadsworth, Matthew J"]
[Black "Atanasov, Anthony"]
[Result "1-0"]
[ECO "A34"]
[WhiteElo "2364"]
[BlackElo "1928"]
[Annotator "NA"]
[PlyCount "87"]
[EventDate "2018.12.09"]
[EventType "swiss"]
[EventCountry "ENG"]
[SourceTitle "playchess.com"]
[Source "ChessBase"]
[SourceQuality "1"]
[TimeControl "40/5400+30:1800+30"]

1. c4 {[%emt 0:00:00]} Nf6 {[%emt 0:00:00]} 2. g3 {[%emt 0:00:00]} g6 {[%emt 0:00:00]} 3. Bg2 {[%emt 0:00:00]} d5 {[%emt 0:00:00]} 4. cxd5 {[%emt 0:00:58]} Nxd5 {[%emt 0:00:10]} 5. Nc3 {[%emt 0:00:06]} Nxc3 {[%emt 0:00:30]} 6. bxc3 {[%emt 0:00:09]} c5 {[%emt 0:00:27]} 7. Nf3 {[%emt 0:00:30]} Bg7 {[%emt 0:01:21]} 8. O-O {[%emt 0:00:18]} O-O {[%emt 0:01:40]} 9. Rb1 {[%emt 0:00:12]} Nc6 {[%emt 0:08:27]} 10. Qa4 {[%emt 0:00:15]} Qc7 {[%emt 0:12:14]} 11. Qh4 {[%emt 0:03:57]} Bf5 {[%emt 0:09:59]} 12. d3 {[%emt 0:01:07]} Bxc3 {[%emt 0:05:26]} 13. g4 {[%emt 0:00:12]} Bf6 {[%emt 0:01:15]} 14. Ng5 {[%emt 0:02:37]} Bxg5 {[%emt 0:00:36]} 15. Bxg5 {[%emt 0:00:12]} Be6 {[%emt 0:03:15]} 16. Bxc6 {[%emt 0:06:10]} Qxc6 {[%emt 0:05:23]} 17. Bxe7 {[%emt 0:00:08]} Rfe8 {[%emt 0:01:10]} 18. h3 {[%emt 0:00:14]} Bxa2 {[%emt 0:03:06]} 19. Rb2 {[%emt 0:01:04]} Qe6 {[%emt 0:14:40]} 20. Bxc5 {[%emt 0:07:31]} Qe5 {[%emt 0:07:22]} 21. Ba3 {[%emt 0:02:03]} Bd5 {[%emt 0:01:03]} 22. Rc2 {[%emt 0:01:21]} Bc6 {[%emt 0:01:49]} 23. Bb2 {[%emt 0:01:17]} Qd5 {[%emt 0:06:10]} 24. f3 {[%emt 0:01:21]} Qe6 {[%emt 0:02:39]} 25. Rf2 {[%emt 0:06:40]} Qe7 {[%emt 0:05:33]} 26. Qh6 {[%emt 0:00:44]} Qf8 {[%emt 0:00:59]} 27. Qf4 {[%emt 0:00:06]} Re6 {[%emt 0:02:01]} 28. e4 {[%emt 0:01:11]} Qd6 {[%emt 0:02:07]} 29. Qh6 {[%emt 0:00:42]} Qf8 {[%emt 0:02:49]} 30. Qd2 {[%emt 0:00:01]} f6 {[%emt 0:01:29]} 31. d4 {[%emt 0:00:38]} Ba4 {[%emt 0:00:50]} 32. Rc3 {[%emt 0:01:43]} Qd6 {[%emt 0:00:27]} 33. d5 {[%emt 0:00:43]} Ree8 {[%emt 0:00:37]} 34. Qd4 {[%emt 0:00:50]} Bb5 {[%emt 0:00:45]} 35. f4 {[%emt 0:03:22]} Rec8 {[%emt 0:00:39]} 36. g5 {[%emt 0:00:57]} Qb6 {[%emt 0:00:31]} 37. Qxb6 {[%emt 0:01:14]} axb6 {[%emt 0:00:14]} 38. Rxc8+ {[%emt 0:00:06]} Rxc8 {[%emt 0:00:19]} 39. gxf6 {[%emt 0:00:01]} Bd3 {[%emt 0:00:56]} 40. e5 {[%emt 0:00:11]} Be4 {[%emt 0:00:31]} 41. Rd2 {[%emt 0:30:32]} Rc2 {[%emt 0:30:29]} 42. Rxc2 {[%emt 0:00:10]} Bxc2 {[%emt 0:00:24]} 43. e6 {[%emt 0:00:04]} b5 {[%emt 0:00:00]} 44. f7+ {[%emt 0:00:00]} 1-0

[Event "10th LCC FIDE Open 2018"]
[Site "London"]
[Date "2018.12.09"]
[Round "1"]
[White "Sowray, Peter J"]
[Black "Balaji, Aaravamudhan"]
[Result "1-0"]
[ECO "E81"]
[WhiteElo "2342"]
[BlackElo "1914"]
[Annotator "NA"]
[PlyCount "71"]
[EventDate "2018.12.09"]
[EventType "swiss"]
[EventCountry "ENG"]
[SourceTitle "playchess.com"]
[Source "ChessBase"]
[SourceQuality "1"]
[TimeControl "40/5400+30:1800+30"]

1. d4 {[%emt 0:00:00]} Nf6 {[%emt 0:01:51]} 2. c4 {[%emt 0:00:00]} g6 {[%emt 0:00:15]} 3. Nc3 {[%emt 0:00:00]} Bg7 {[%emt 0:00:07]} 4. e4 {[%emt 0:00:00]} d6 {[%emt 0:00:04]} 5. f3 {[%emt 0:00:02]} O-O {[%emt 0:00:06]} 6. Be3 {[%emt 0:00:05]} c5 {[%emt 0:00:27]} 7. Nge2 {[%emt 0:00:15]} Nc6 {[%emt 0:01:19]} 8. d5 {[%emt 0:00:18]} Ne5 {[%emt 0:00:57]} 9. Ng3 {[%emt 0:00:11]} h5 {[%emt 0:02:17]} 10. Be2 {[%emt 0:00:12] E81: King's Indian: Sämisch: 6th move deviations (including 6 Be3 c6)} h4 {[%emt 0:01:34]} 11. Nf1 {[%emt 0:00:10]} a6 {[%emt 0:15:23]} (11... e6 12. Bg5 exd5 13. Nxd5 h3 14. gxh3 Bxh3 15. Ng3 Qa5+ 16. b4 Qd8 17. bxc5 Qa5+ {½-½ (89) Sethuraman,S (2631)-Jones,G (2675) Dubai 2018}) 12. a4 {[%emt 0:06:25]} Bd7 {[%emt 0:03:27]} 13. h3 {[%emt 0:03:02]} b5 $146 {[%emt 0:03:26]} ({Predecessor:} 13... Qa5 14. Bd2 Be8 15. f4 Ned7 16. Nh2 e5 17. f5 Qb6 {½-½ (39) Timson,P (2506)-Pugh,J (2472) ICCF email 2014}) 14. axb5 {[%emt 0:05:18]} axb5 {[%emt 0:00:25]} 15. Rxa8 {[%emt 0:00:07]} Qxa8 {[%emt 0:00:04]} 16. cxb5 {[%emt 0:00:08]} c4 {[%emt 0:01:47]} 17. Nd2 {[%emt 0:09:35]} Nh5 {[%emt 0:18:56]} 18. O-O {[%emt 0:14:01]} Ng3 {[%emt 0:04:53]} 19. Rf2 {[%emt 0:05:44]} Nxe2+ {[%emt 0:11:41]} 20. Rxe2 {[%emt 0:01:32]} Rc8 {[%emt 0:02:36]} 21. f4 {[%emt 0:27:39]} Nd3 {[%emt 0:01:18]} 22. Nf3 {[%emt 0:00:45]} Nxb2 {[%emt 0:09:58]} 23. Rxb2 {[%emt 0:00:12]} Bxc3 {[%emt 0:00:56]} 24. Rb1 {[%emt 0:00:38]} Bf6 {[%emt 0:09:14]} 25. Nd4 {[%emt 0:03:34]} Qa3 {[%emt 0:02:27]} 26. Bf2 {[%emt 0:00:55]} Bxd4 {[%emt 0:02:52]} 27. Bxd4 {[%emt 0:03:39]} c3 $1 {[%emt 0:04:01]} 28. Qc2 {[%emt 0:00:08]} Rc4 {[%emt 0:00:55]} 29. b6 {[%emt 0:02:46]} Bc8 {[%emt 0:00:28]} 30. Be3 {[%emt 0:04:18]} Rb4 {[%emt 0:00:26]} 31. Rc1 {[%emt 0:02:00]} Rb3 {[%emt 0:00:39]} 32. Bd4 {[%emt 0:02:10]} Qb4 {[%emt 0:00:29]} (32... Ba6 $11) 33. Kh1 {[%emt 0:01:45]} Ba6 {[%emt 0:00:39]} (33... Bb7 $11 {remains equal.}) 34. Bxc3 {[%emt 0:01:42]} Qxb6 {[%emt 0:00:15] [#]} 35. Bd4 $11 {[%emt 0:00:27]} (35. f5 $1 $16) 35... Qb4 {[%emt 0:00:37]} 36. Qc8+ {[%emt 0:00:39]} 1-0

[Event "10th LCC FIDE Open 2018"]
[Site "London"]
[Date "2018.12.09"]
[Round "1"]
[White "Taylor, Adam C"]
[Black "Rizzoli, Aluna"]
[Result "1-0"]
[ECO "B30"]
[WhiteElo "2331"]
[BlackElo "1911"]
[Annotator "NA"]
[PlyCount "53"]
[EventDate "2018.12.09"]
[EventType "swiss"]
[EventCountry "ENG"]
[SourceTitle "playchess.com"]
[Source "ChessBase"]
[SourceQuality "1"]
[TimeControl "40/5400+30:1800+30"]

1. e4 {[%emt 0:05:24]} c5 {[%emt 0:00:09]} 2. Nf3 {[%emt 0:00:23]} Nc6 {[%emt 0:00:10]} 3. Nc3 {[%emt 0:03:04]} g6 {[%emt 0:01:04]} 4. Bc4 {[%emt 0:02:13]} Bg7 {[%emt 0:01:06]} 5. O-O {[%emt 0:01:15]} e6 {[%emt 0:02:21]} 6. d4 {[%emt 0:11:53]} Nxd4 {[%emt 0:10:46]} 7. Nxd4 {[%emt 0:00:07]} cxd4 {[%emt 0:00:18]} 8. Nb5 {[%emt 0:00:08]} Qb6 {[%emt 0:02:57]} 9. c3 {[%emt 0:06:03]} dxc3 {[%emt 0:00:51]} 10. Bf4 {[%emt 0:13:17]} c2 {[%emt 0:10:43]} 11. Qxc2 {[%emt 0:02:19]} Kf8 {[%emt 0:04:59]} 12. Nc7 {[%emt 0:10:12]} Rb8 {[%emt 0:00:02]} 13. Nxe6+ {[%emt 0:02:13]} fxe6 {[%emt 0:00:46]} 14. Bxb8 {[%emt 0:00:07]} Qxb2 15. Qd3 {[%emt 0:07:28]} Qd4 {[%emt 0:02:47]} 16. Qf3+ {[%emt 0:02:46]} Qf6 {[%emt 0:02:19]} 17. Qa3+ {[%emt 0:00:45]} Ne7 {[%emt 0:00:27]} 18. e5 {[%emt 0:02:02]} Qf4 {[%emt 0:01:17]} 19. Bd6 {[%emt 0:01:07]} Bxe5 {[%emt 0:00:21]} 20. Bxe7+ {[%emt 0:03:07]} Kf7 {[%emt 0:00:02]} 21. g3 {[%emt 0:00:08]} Qxc4 {[%emt 0:00:20]} 22. Bg5 {[%emt 0:01:38]} Re8 {[%emt 0:05:40]} 23. Rac1 {[%emt 0:02:06]} Qg4 {[%emt 0:00:33]} 24. Qe3 {[%emt 0:09:20]} Bd4 {[%emt 0:05:41]} 25. Qd2 {[%emt 0:00:05]} h6 {[%emt 0:02:18]} 26. Be3 {[%emt 0:00:25]} Bf6 {[%emt 0:02:41]} 27. Rxc8 {[%emt 0:00:29]} 1-0